fUSD/lending_fUSD_20241129
["ID","MTS","AMOUNT","RATE_DAILY","PERIOD"]
[343680908,1732848243840,-500.0,9.996e-05,2]
[343680909,1732848243862,-552.07452551,9.996e-05,2]
[343680910,1732848243883,-503.80013094,9.996e-05,2]
[343680911,1732848243907,-500.0,9.996e-05,2]
[343680912,1732848243931,-606.67,9.996e-05,2]
[343680913,1732848243954,-500.0,9.996e-05,2]
[343680914,1732848243979,-500.0,9.996e-05,2]
[343680915,1732848244004,-500.0,9.996e-05,2]
[343680916,1732848244027,-507.61975082,9.996e-05,2]
[343680917,1732848244051,-531.84637332,9.996e-05,2]
[343680918,1732848244074,-266.66501489,9.996e-05,2]
[343680919,1732848244097,-544.07290076,9.996e-05,2]
[343680920,1732848244120,-500.0,9.996e-05,2]
[343680921,1732848244144,-434.29371741,9.996e-05,2]
[343680922,1732848244168,-500.0,9.996e-05,2]
[343680923,1732848244192,-500.0,9.996e-05,2]
[343680924,1732848244216,-500.0,9.996e-05,2]
[343680925,1732848244241,-500.0,9.996e-05,2]
[343680926,1732848244266,-500.0,9.996e-05,2]
[343680927,1732848244290,-504.95571786,9.996e-05,2]
[343680928,1732848244313,-624.53927112,9.996e-05,2]
[343680929,1732848244337,-500.0,9.996e-05,2]
[343680930,1732848244360,-500.0,9.996e-05,2]
[343680931,1732848244385,-4782.55,9.996e-05,2]
[343680932,1732848244419,-4782.55,9.996e-05,2]
[343680933,1732848244443,-500.0,9.996e-05,2]
[343680934,1732848244466,-500.0,9.996e-05,2]
[343680935,1732848244491,-540.6717254,9.996e-05,2]
[343680936,1732848244515,-647.48,9.996e-05,2]
[343680937,1732848244539,-523.9692165,9.996e-05,2]
[343680938,1732848244565,-8467.07,9.996e-05,2]
[343680939,1732848244593,-8467.07,9.996e-05,2]
[343680940,1732848244616,-500.0,9.996e-05,2]
[343680941,1732848244638,-500.0,9.996e-05,2]
[343680942,1732848244668,-500.0,9.996e-05,2]
[343680943,1732848244690,-515.39926347,9.996e-05,2]
[343680944,1732848244715,-500.0,9.996e-05,2]
[343680945,1732848244739,-566.98939539,9.996e-05,2]
[343680946,1732848244762,-500.0,9.996e-05,2]
[343680947,1732848244786,-500.0,9.996e-05,2]
[343680948,1732848244809,-500.0,9.996e-05,2]
[343680949,1732848244830,-500.0,9.996e-05,2]
[343680950,1732848244851,-500.0,9.996e-05,2]
[343680951,1732848244872,-500.0,9.996e-05,2]
[343680952,1732848244895,-500.0,9.996e-05,2]
[343680953,1732848244918,-500.0,9.996e-05,2]
[343680954,1732848244940,-500.0,9.996e-05,2]
[343680955,1732848244971,-1852.23,9.996e-05,2]
[343680956,1732848244994,-1852.23,9.996e-05,2]
[343680957,1732848245018,-500.0,9.996e-05,2]
[343680958,1732848245041,-500.0,9.996e-05,2]
[343680959,1732848245064,-534.62830706,9.996e-05,2]
[343680960,1732848245088,-254.34689093,9.996e-05,2]
[343680961,1732848245113,-5160.0,9.996e-05,2]
[343680962,1732848245138,-5160.0,9.996e-05,2]
[343680963,1732848245163,-500.0,9.996e-05,2]
[343680964,1732848245188,-504.96453273,9.996e-05,2]
[343680965,1732848245212,-505.31973094,9.996e-05,2]
[343680966,1732848245236,-500.0,9.996e-05,2]
[343680967,1732848245260,-501.10295412,9.996e-05,2]
[343680968,1732848245283,-500.0,9.996e-05,2]
[343680969,1732848245307,-500.0,9.996e-05,2]
[343680970,1732848245330,-500.0,9.996e-05,2]
[343680971,1732848245354,-330.52801533,9.996e-05,2]
[343680972,1732848245378,-500.0,9.996e-05,2]
[343680973,1732848245404,-500.0,9.996e-05,2]
[343680974,1732848245429,-171.53419535,9.996e-05,2]
[343680975,1732848245452,-301.2596974,9.996e-05,2]
[343680976,1732848245476,-556.20192668,9.996e-05,2]
[343680977,1732848245500,-500.0,9.996e-05,2]
[343680978,1732848245524,-500.0,9.996e-05,2]
[343680979,1732848245549,-507.85892657,9.996e-05,2]
[343680980,1732848245572,-500.0,9.996e-05,2]
[343680981,1732848245597,-500.0,9.996e-05,2]
[343680982,1732848245798,-500.0,9.996e-05,2]
[343680983,1732848245820,-546.86865856,9.996e-05,2]
[343680984,1732848245843,-564.69,9.996e-05,2]
[343680985,1732848245865,-500.0,9.996e-05,2]
[343680986,1732848245887,-153.38686491,9.996e-05,2]
[343680987,1732848245911,-500.0,9.996e-05,2]
[343680988,1732848245933,-176.14453361,9.996e-05,2]
[343680989,1732848245956,-500.0,9.996e-05,2]
[343680990,1732848245979,-500.0,9.996e-05,2]
[343680991,1732848246002,-500.0,9.996e-05,2]
[343680992,1732848246027,-500.0,9.996e-05,2]
[343680993,1732848246051,-502.6,9.996e-05,2]
[343680994,1732848246073,-502.6,9.996e-05,2]
[343680995,1732848246097,-500.0,9.996e-05,2]
[343680996,1732848246122,-500.0,9.996e-05,2]
[343680997,1732848246147,-509.24515232,9.996e-05,2]
[343680998,1732848246171,-500.0,9.996e-05,2]
[343680999,1732848246194,-500.0,9.996e-05,2]
[343681000,1732848246217,-500.0,9.996e-05,2]
[343681001,1732848246242,-500.0,9.996e-05,2]
[343681002,1732848246266,-500.0,9.996e-05,2]
[343681003,1732848246290,-5437.09,9.996e-05,2]
[343681004,1732848246314,-500.0,9.996e-05,2]
[343681005,1732848246337,-5437.09,9.996e-05,2]
[343681006,1732848246360,-500.0,9.996e-05,2]
[343681007,1732848246384,-500.0,9.996e-05,2]
[343681008,1732848246411,-501.23,9.996e-05,2]
[343681009,1732848246439,-519.95910345,9.996e-05,2]
[343681010,1732848246463,-501.23,9.996e-05,2]
[343681011,1732848246486,-503.21373798,9.996e-05,2]
[343681012,1732848246508,-501.71959775,9.996e-05,2]
[343681013,1732848246529,-1387.94,9.996e-05,2]
[343681014,1732848246552,-1387.94,9.996e-05,2]
[343681015,1732848246576,-896.26,9.996e-05,2]
[343681016,1732848246600,-896.26,9.996e-05,2]
[343681017,1732848246621,-504.82061775,9.996e-05,2]
[343681018,1732848246643,-529.49,9.996e-05,2]
[343681019,1732848246667,-500.0,9.996e-05,2]
[343681020,1732848246696,-500.0,9.996e-05,2]
[343681021,1732848246719,-500.0,9.996e-05,2]
[343681022,1732848246741,-500.0,9.996e-05,2]
[343681023,1732848246763,-500.0,9.996e-05,2]
[343681024,1732848246787,-1178.69,9.996e-05,2]
[343681025,1732848246809,-1178.69,9.996e-05,2]
[343681026,1732848246832,-500.0,9.996e-05,2]
[343681027,1732848246855,-600.81019758,9.996e-05,2]
[343681028,1732848246878,-545.50496498,9.996e-05,2]
[343681029,1732848246902,-500.0,9.996e-05,2]
[343681030,1732848246925,-929.29,9.996e-05,2]
[343681031,1732848246949,-929.29,9.996e-05,2]
[343681032,1732848246973,-1417.33,9.996e-05,2]
[343681033,1732848246996,-1417.33,9.996e-05,2]
[343681034,1732848247020,-4320.18,9.996e-05,2]
[343681035,1732848247044,-4320.18,9.996e-05,2]
[343681036,1732848247067,-501.52194967,9.996e-05,2]
[343681037,1732848247091,-500.0,9.996e-05,2]
[343681038,1732848247115,-500.0,9.996e-05,2]
[343681039,1732848247140,-672.92,9.996e-05,2]
[343681040,1732848247166,-672.92,9.996e-05,2]
[343681041,1732848247190,-3963.21,9.996e-05,2]
[343681042,1732848247213,-3963.21,9.996e-05,2]
[343681043,1732848247237,-606.54,9.996e-05,2]
[343681044,1732848247261,-500.0,9.996e-05,2]
[343681045,1732848247285,-500.0,9.996e-05,2]
[343681046,1732848247309,-500.0,9.996e-05,2]
[343681047,1732848247333,-500.0,9.996e-05,2]
[343681048,1732848247356,-500.0,9.996e-05,2]
[343681049,1732848247378,-444.55325865,9.996e-05,2]
[343681050,1732848247403,-500.0,9.996e-05,2]
[343681051,1732848247427,-419.4232329,9.996e-05,2]
[343681052,1732848247452,-532.71,9.996e-05,2]
[343681053,1732848247476,-532.71,9.996e-05,2]
[343681054,1732848247499,-500.0,9.996e-05,2]
[343681055,1732848247524,-500.0,9.996e-05,2]
[343681056,1732848247550,-1344.12,9.996e-05,2]
[343681057,1732848247575,-1344.12,9.996e-05,2]
[343681058,1732848247600,-1133.6,9.996e-05,2]
[343681059,1732848247623,-1133.6,9.996e-05,2]
[343681060,1732848247648,-500.0,9.996e-05,2]
[343681061,1732848247674,-500.0,9.996e-05,2]
[343681062,1732848247701,-500.0,9.996e-05,2]
[343681063,1732848247725,-500.0,9.996e-05,2]
[343681064,1732848247749,-518.63328344,9.996e-05,2]
[343681065,1732848247773,-500.0,9.996e-05,2]
[343681066,1732848247797,-677.71,9.996e-05,2]
[343681067,1732848247821,-1654.53,9.996e-05,2]
[343681068,1732848247844,-677.71,9.996e-05,2]
[343681069,1732848247867,-1654.53,9.996e-05,2]
[343681070,1732848247888,-352.32798955,9.997e-05,2]
[343681071,1732848247911,-500.0,9.997e-05,2]
[343681072,1732848247939,-518.70857318,9.997e-05,2]
[343681073,1732848247961,-500.0,9.997e-05,2]
[343681074,1732848247983,-513.24769651,9.997e-05,2]
[343681075,1732848248006,-455.95665653,9.997e-05,2]
[343681076,1732848248033,-1356.31,9.997e-05,2]
[343681077,1732848248055,-1356.31,9.997e-05,2]
[343681078,1732848248080,-1356.31,9.997e-05,2]
[343681079,1732848248103,-1356.31,9.997e-05,2]
[343681080,1732848248128,-1356.31,9.997e-05,2]
[343681081,1732848248152,-511.59564286,9.997e-05,2]
[343681082,1732848248178,-1143.67,9.997e-05,2]
[343681083,1732848248202,-1143.67,9.997e-05,2]
[343681084,1732848248226,-1143.67,9.997e-05,2]
[343681085,1732848248248,-1143.67,9.997e-05,2]
[343681086,1732848248271,-1143.67,9.997e-05,2]
[343681087,1732848248294,-500.0,9.997e-05,2]
[343681088,1732848248318,-500.0,9.997e-05,2]
[343681089,1732848248341,-484.89751051,9.997e-05,2]
[343681090,1732848248363,-500.0,9.997e-05,2]
[343681091,1732848248387,-541.58585145,9.997e-05,2]
[343681092,1732848248412,-500.0,9.997e-05,2]
[343681093,1732848248435,-500.0,9.997e-05,2]
[343681094,1732848248457,-500.0,9.997e-05,2]
[343681095,1732848248479,-500.0,9.997e-05,2]
[343681096,1732848248502,-500.0,9.997e-05,2]
[343681097,1732848248525,-500.0,9.997e-05,2]
[343681098,1732848248548,-500.0,9.997e-05,2]
[343681099,1732848248572,-1421.49,9.997e-05,2]
[343681100,1732848248595,-1421.49,9.997e-05,2]
[343681101,1732848248620,-500.0,9.997e-05,2]
[343681102,1732848248643,-497.89707263,9.997e-05,2]
[343681103,1732848248667,-541.5,9.997e-05,2]
[343681104,1732848248691,-541.5,9.997e-05,2]
[343681105,1732848248717,-500.0,9.997e-05,2]
[343681106,1732848248742,-500.0,9.997e-05,2]
[343681107,1732848248765,-500.0,9.997e-05,2]
[343681108,1732848248791,-500.0,9.997e-05,2]
[343681109,1732848248815,-500.0,9.997e-05,2]
[343681110,1732848248841,-500.0,9.997e-05,2]
[343681111,1732848248864,-500.0,9.997e-05,2]
[343681112,1732848248887,-500.0,9.997e-05,2]
[343681113,1732848248909,-500.0,9.997e-05,2]
[343681114,1732848248933,-500.0,9.997e-05,2]
[343681115,1732848248955,-500.0,9.997e-05,2]
[343681116,1732848248978,-500.0,9.997e-05,2]
[343681117,1732848249001,-500.0,9.997e-05,2]
[343681118,1732848249022,-1562.49,9.997e-05,2]
[343681119,1732848249044,-1562.49,9.997e-05,2]
[343681120,1732848249065,-1562.49,9.997e-05,2]
[343681121,1732848249088,-1562.49,9.997e-05,2]
[343681122,1732848249113,-1562.49,9.997e-05,2]
[343681123,1732848249136,-1208.57,9.997e-05,2]
[343681124,1732848249163,-1208.57,9.997e-05,2]
[343681125,1732848249188,-1208.57,9.997e-05,2]
[343681126,1732848249214,-1208.57,9.997e-05,2]
[343681127,1732848249239,-1208.57,9.997e-05,2]
[343681128,1732848249265,-4146.4,9.997e-05,2]
[343681129,1732848249289,-4146.4,9.997e-05,2]
[343681130,1732848249312,-500.0,9.997e-05,2]
[343681131,1732848249335,-500.0,9.997e-05,2]
[343681132,1732848249358,-500.0,9.997e-05,2]
[343681133,1732848249382,-519.86391748,9.997e-05,2]
[343681134,1732848249407,-500.0,9.997e-05,2]
[343681135,1732848249435,-500.0,9.997e-05,2]
[343681136,1732848249459,-500.0,9.997e-05,2]
[343681137,1732848249483,-500.0,9.997e-05,2]
[343681138,1732848249507,-500.0,9.997e-05,2]
[343681139,1732848249534,-1522.59,9.997e-05,2]
[343681140,1732848249560,-1522.59,9.997e-05,2]
[343681141,1732848249584,-500.0,9.997e-05,2]
[343681142,1732848249609,-170.61732816,9.997e-05,2]
[343681143,1732848249635,-805.97,9.997e-05,2]
[343681144,1732848249663,-805.97,9.997e-05,2]
[343681145,1732848249686,-1133.03,9.997e-05,2]
[343681146,1732848249715,-1133.03,9.997e-05,2]
[343681147,1732848249739,-1133.03,9.997e-05,2]
[343681148,1732848249763,-1133.03,9.997e-05,2]
[343681149,1732848249787,-1133.03,9.997e-05,2]
[343681150,1732848249811,-549.45730065,9.997e-05,2]
[343681151,1732848249835,-500.0,9.997e-05,2]
[343681152,1732848249861,-500.0,9.997e-05,2]
[343681153,1732848249885,-958.16,9.997e-05,2]
[343681154,1732848249912,-958.16,9.997e-05,2]
[343681155,1732848249936,-502.7633922,9.997e-05,2]
[343681156,1732848249962,-958.16,9.997e-05,2]
[343681157,1732848249986,-1329.64,9.997e-05,2]
[343681158,1732848250011,-958.16,9.997e-05,2]
[343681159,1732848250263,-1329.64,9.997e-05,2]
[343681160,1732848250288,-958.16,9.997e-05,2]
[343681161,1732848250312,-450.00000001,9.997e-05,2]
[343681162,1732848250336,-500.0,9.997e-05,2]
[343681163,1732848250359,-500.0,9.997e-05,2]
[343681164,1732848250385,-500.0,9.997e-05,2]
[343681165,1732848250408,-502.04357892,9.997e-05,2]
[343681166,1732848250434,-512.3432293,9.997e-05,2]
[343681167,1732848250460,-500.0,9.997e-05,2]
[343681168,1732848250485,-500.0,9.997e-05,2]
[343681169,1732848250508,-500.0,9.997e-05,2]
[343681170,1732848250532,-500.0,9.997e-05,2]
[343681171,1732848250558,-500.0,9.997e-05,2]
[343681172,1732848250583,-500.0,9.997e-05,2]
[343681173,1732848250607,-500.0,9.997e-05,2]
[343681174,1732848250631,-194.78870172,9.997e-05,2]
[343681175,1732848250656,-565.73149843,9.997e-05,2]
[343681176,1732848250684,-500.0,9.997e-05,2]
[343681177,1732848250711,-500.0,9.997e-05,2]
[343681178,1732848250736,-568.74,9.997e-05,2]
[343681179,1732848250768,-568.74,9.997e-05,2]
[343681180,1732848250798,-500.0,9.997e-05,2]
[343681181,1732848250823,-516.26558209,9.997e-05,2]
[343681182,1732848250847,-672.27,9.997e-05,2]
[343681183,1732848250874,-672.27,9.997e-05,2]
[343681184,1732848250899,-672.27,9.997e-05,2]
[343681185,1732848250926,-672.27,9.997e-05,2]
[343681186,1732848250950,-672.27,9.997e-05,2]
[343681187,1732848250976,-500.0,9.997e-05,2]
[343681188,1732848251002,-440.34154647,9.997e-05,2]
[343681189,1732848251027,-500.0,9.997e-05,2]
[343681190,1732848251050,-3852.66,9.997e-05,2]
[343681191,1732848251075,-3852.66,9.997e-05,2]
[343681192,1732848251101,-3852.66,9.997e-05,2]
[343681193,1732848251126,-3852.66,9.997e-05,2]
[343681194,1732848251152,-3852.66,9.997e-05,2]
[343681195,1732848251179,-500.0,9.997e-05,2]
[343681196,1732848251209,-500.0,9.997e-05,2]
[343681198,1732848251235,-500.0,9.997e-05,2]
[343681199,1732848251261,-500.0,9.997e-05,2]
[343681200,1732848251286,-1083.41,9.997e-05,2]
[343681201,1732848251314,-1083.41,9.997e-05,2]
[343681202,1732848251336,-526.06302227,9.997e-05,2]
[343681203,1732848251360,-500.0,9.997e-05,2]
[343681204,1732848251385,-500.0,9.997e-05,2]
[343681205,1732848251409,-500.0,9.997e-05,2]
[343681206,1732848251440,-500.0,9.997e-05,2]
[343681207,1732848251464,-511.44026908,9.997e-05,2]
[343681208,1732848251488,-500.0,9.997e-05,2]
[343681209,1732848251514,-500.0,9.997e-05,2]
[343681210,1732848251539,-500.0,9.997e-05,2]
[343681211,1732848251563,-500.0,9.997e-05,2]
[343681212,1732848251588,-601.38,9.997e-05,2]
[343681213,1732848251611,-500.0,9.997e-05,2]
[343681214,1732848251636,-601.38,9.997e-05,2]
[343681215,1732848251660,-500.0,9.997e-05,2]
[343681216,1732848251686,-500.0,9.997e-05,2]
[343681217,1732848251711,-504.7765878,9.997e-05,2]
[343681218,1732848251735,-880.36,9.997e-05,2]
[343681219,1732848251759,-880.36,9.997e-05,2]
[343681220,1732848251784,-500.0,9.997e-05,2]
[343681221,1732848251807,-297.23899096,9.997e-05,2]
[343681222,1732848251829,-515.73119627,9.997e-05,2]
[343681223,1732848251852,-500.0,9.997e-05,2]
[343681224,1732848251875,-500.0,9.997e-05,2]
[343681225,1732848251897,-902.27,9.997e-05,2]
[343681226,1732848251922,-902.27,9.997e-05,2]
[343681227,1732848251945,-500.0,9.997e-05,2]
[343681228,1732848251969,-541.63989098,9.997e-05,2]
[343681229,1732848251992,-969.18,9.997e-05,2]
[343681230,1732848252016,-969.18,9.997e-05,2]
[343681231,1732848252040,-500.0,9.997e-05,2]
[343681232,1732848252064,-500.0,9.997e-05,2]
[343681233,1732848252093,-500.0,9.997e-05,2]
[343681234,1732848252117,-500.0,9.997e-05,2]
[343681235,1732848252141,-681.07,9.997e-05,2]
[343681236,1732848252167,-681.07,9.997e-05,2]
[343681237,1732848252196,-500.0,9.997e-05,2]
[343681238,1732848252220,-500.0,9.997e-05,2]
[343681239,1732848252243,-500.0,9.997e-05,2]
[343681240,1732848252267,-500.0,9.997e-05,2]
[343681241,1732848252290,-4021.12,9.997e-05,2]
[343681242,1732848252314,-4021.12,9.997e-05,2]
[343681243,1732848252339,-500.0,9.997e-05,2]
[343681244,1732848252363,-418.69033121,9.997e-05,2]
[343681245,1732848252387,-500.0,9.997e-05,2]
[343681246,1732848252412,-500.0,9.997e-05,2]
[343681247,1732848252442,-500.0,9.997e-05,2]
[343681248,1732848252466,-500.0,9.997e-05,2]
[343681249,1732848252489,-242.28479641,9.997e-05,2]
[343681250,1732848252516,-576.60050695,9.997e-05,2]
[343681251,1732848252542,-500.0,9.997e-05,2]
[343681252,1732848252568,-500.0,9.997e-05,2]
[343681253,1732848252593,-500.0,9.997e-05,2]
[343681254,1732848252616,-500.0,9.997e-05,2]
[343681255,1732848252641,-547.77837491,9.997e-05,2]
[343681256,1732848252668,-500.0,9.997e-05,2]
[343681257,1732848252691,-500.0,9.997e-05,2]
[343681258,1732848252720,-500.0,9.997e-05,2]
[343681259,1732848252743,-511.16615611,9.997e-05,2]
[343681260,1732848252765,-4301.23,9.997e-05,2]
[343681261,1732848252792,-500.0,9.997e-05,2]
[343681262,1732848252817,-4301.23,9.997e-05,2]
[343681263,1732848252843,-584.77900453,9.997e-05,2]
[343681264,1732848252867,-500.0,9.997e-05,2]
[343681265,1732848252891,-500.0,9.997e-05,2]
[343681266,1732848252914,-247.82582794,9.997e-05,2]
[343681267,1732848252949,-500.0,9.997e-05,2]
[343681268,1732848252979,-241.7970628,9.997e-05,2]
[343681269,1732848253009,-500.0,9.997e-05,2]
[343681270,1732848253035,-500.0,9.997e-05,2]
[343681271,1732848253060,-393.12,9.997e-05,2]
[343681272,1732848253086,-230.24612862,9.997e-05,2]
[343681273,1732848253114,-500.0,9.997e-05,2]
[343681274,1732848253140,-500.0,9.997e-05,2]
[343681275,1732848253169,-568.02218572,9.997e-05,2]
[343681276,1732848253193,-500.0,9.997e-05,2]
[343681277,1732848253218,-500.0,9.997e-05,2]
[343681278,1732848253244,-4146.57,9.997e-05,2]
[343681279,1732848253268,-500.0,9.997e-05,2]
[343681280,1732848253294,-4146.57,9.997e-05,2]
[343681281,1732848253319,-579.44,9.997e-05,2]
[343681282,1732848253342,-579.44,9.997e-05,2]
[343681283,1732848253368,-500.0,9.997e-05,2]
[343681284,1732848253396,-245.06620659,9.997e-05,2]
[343681285,1732848253425,-7806.29,9.997e-05,2]
[343681286,1732848253448,-7806.29,9.997e-05,2]
[343681287,1732848253472,-500.0,9.997e-05,2]
[343681288,1732848253498,-500.0,9.997e-05,2]
[343681289,1732848253523,-500.0,9.997e-05,2]
[343681290,1732848253547,-500.0,9.997e-05,2]
[343681291,1732848253576,-500.0,9.997e-05,2]
[343681292,1732848253602,-554.06156682,9.997e-05,2]
[343681293,1732848253629,-500.0,9.997e-05,2]
[343681294,1732848253653,-647.83656334,9.997e-05,2]
[343681295,1732848253680,-523.43086301,9.997e-05,2]
[343681296,1732848253706,-500.0,9.997e-05,2]
[343681297,1732848253730,-500.0,9.997e-05,2]
[343681298,1732848253756,-500.0,9.997e-05,2]
[343681299,1732848253783,-500.0,9.997e-05,2]
[343681300,1732848253809,-500.0,9.997e-05,2]
[343681301,1732848253834,-500.0,9.997e-05,2]
[343681302,1732848253858,-4921.89,9.997e-05,2]
[343681303,1732848253883,-4921.89,9.997e-05,2]
[343681304,1732848253909,-500.0,9.997e-05,2]
[343681305,1732848253935,-4782.55,9.997e-05,2]
[343681306,1732848253962,-500.0,9.997e-05,2]
[343681307,1732848253988,-500.0,9.997e-05,2]
[343681308,1732848254014,-4782.55,9.997e-05,2]
[343681309,1732848254039,-519.02979995,9.997e-05,2]
[343681310,1732848254066,-8467.07,9.997e-05,2]
[343681311,1732848254092,-8467.07,9.997e-05,2]
[343681312,1732848254117,-8972.2,9.997e-05,2]
[343681313,1732848254142,-8972.2,9.997e-05,2]
[343681314,1732848254166,-500.0,9.997e-05,2]
[343681315,1732848254193,-500.0,9.997e-05,2]
[343681316,1732848254218,-500.0,9.997e-05,2]
[343681317,1732848254248,-500.0,9.997e-05,2]
[343681318,1732848254273,-500.0,9.997e-05,2]
[343681319,1732848254298,-500.0,9.997e-05,2]
[343681320,1732848254321,-500.0,9.997e-05,2]
[343681321,1732848254345,-170.76440791,9.997e-05,2]
[343681322,1732848254369,-4678.39,9.997e-05,2]
[343681323,1732848254392,-4678.39,9.997e-05,2]
[343681324,1732848254415,-1852.23,9.997e-05,2]
[343681325,1732848254440,-1852.23,9.997e-05,2]
[343681326,1732848254465,-5160.0,9.997e-05,2]
[343681327,1732848254489,-5160.0,9.997e-05,2]
[343681328,1732848254513,-508.25186565,9.997e-05,2]
[343681329,1732848254537,-500.0,9.997e-05,2]
[343681330,1732848254561,-382.95927341,9.997e-05,2]
[343681331,1732848254588,-500.0,9.997e-05,2]
[343681332,1732848254615,-500.0,9.997e-05,2]
[343681333,1732848254641,-500.0,9.997e-05,2]
[343681334,1732848254666,-500.0,9.997e-05,2]
[343681335,1732848254694,-500.0,9.997e-05,2]
[343681336,1732848254721,-568.4651257,9.997e-05,2]
[343681337,1732848254996,-3718.42,9.997e-05,2]
[343681338,1732848255022,-526.34201,9.997e-05,2]
[343681339,1732848255046,-3718.42,9.997e-05,2]
[343681340,1732848255071,-500.0,9.997e-05,2]
[343681341,1732848255095,-500.0,9.997e-05,2]
[343681342,1732848255117,-500.0,9.997e-05,2]
[343681343,1732848255139,-500.0,9.997e-05,2]
[343681344,1732848255163,-502.6,9.997e-05,2]
[343681345,1732848255188,-502.6,9.997e-05,2]
[343681346,1732848255211,-500.0,9.997e-05,2]
[343681347,1732848255238,-500.0,9.997e-05,2]
[343681348,1732848255263,-4643.38,9.997e-05,2]
[343681349,1732848255288,-4643.38,9.997e-05,2]
[343681350,1732848255312,-500.0,9.997e-05,2]
[343681351,1732848255337,-303.22679344,9.997e-05,2]
[343681352,1732848255363,-500.0,9.997e-05,2]
[343681353,1732848255387,-500.0,9.997e-05,2]
[343681354,1732848255412,-5437.09,9.997e-05,2]
[343681355,1732848255439,-500.0,9.997e-05,2]
[343681356,1732848255462,-5437.09,9.997e-05,2]
[343681357,1732848255485,-500.0,9.997e-05,2]
[343681358,1732848255509,-501.23,9.997e-05,2]
[343681359,1732848255533,-501.23,9.997e-05,2]
[343681360,1732848255557,-1387.94,9.997e-05,2]
[343681361,1732848255581,-1387.94,9.997e-05,2]
[343681362,1732848255605,-896.26,9.997e-05,2]
[343681363,1732848255630,-896.26,9.997e-05,2]
[343681364,1732848255654,-500.0,9.997e-05,2]
[343681365,1732848255680,-516.17126833,9.997e-05,2]
[343681366,1732848255704,-500.0,9.997e-05,2]
[343681367,1732848255727,-470.13729334,9.997e-05,2]
[343681368,1732848255752,-500.0,9.997e-05,2]
[343681369,1732848255777,-500.0,9.997e-05,2]
[343681370,1732848255801,-553.28211109,9.997e-05,2]
[343681371,1732848255824,-1178.69,9.997e-05,2]
[343681372,1732848255850,-1178.69,9.997e-05,2]
[343681373,1732848255876,-500.0,9.997e-05,2]
[343681374,1732848255899,-500.0,9.997e-05,2]
[343681375,1732848255925,-929.29,9.997e-05,2]
[343681376,1732848255948,-500.0,9.997e-05,2]
[343681377,1732848255972,-929.29,9.997e-05,2]
[343681378,1732848255996,-500.0,9.997e-05,2]
[343681379,1732848256020,-1417.33,9.997e-05,2]
[343681380,1732848256042,-1417.33,9.997e-05,2]
[343681381,1732848256066,-2746.34,9.997e-05,2]
[343681382,1732848256088,-2746.34,9.997e-05,2]
[343681383,1732848256111,-4320.18,9.997e-05,2]
[343681384,1732848256135,-4320.18,9.997e-05,2]
[343681385,1732848256159,-907.81,9.997e-05,2]
[343681386,1732848256184,-907.81,9.997e-05,2]
[343681387,1732848256208,-500.0,9.997e-05,2]
[343681388,1732848256233,-500.0,9.997e-05,2]
[343681389,1732848256256,-672.92,9.997e-05,2]
[343681390,1732848256279,-672.92,9.997e-05,2]
[343681391,1732848256320,-3963.21,9.997e-05,2]
[343681392,1732848256360,-3963.21,9.997e-05,2]
[343681393,1732848256399,-540.64174576,9.997e-05,2]
[343681394,1732848256437,-549.65557379,9.997e-05,2]
[343681395,1732848256476,-500.0,9.997e-05,2]
[343681396,1732848256516,-500.0,9.997e-05,2]
[343681397,1732848256556,-500.0,9.997e-05,2]
[343681398,1732848256595,-500.0,9.997e-05,2]
[343681399,1732848256635,-500.0,9.997e-05,2]
[343681400,1732848256677,-461.53,9.997e-05,2]
[343681401,1732848256718,-500.0,9.997e-05,2]
[343681402,1732848256762,-500.0,9.997e-05,2]
[343681403,1732848256803,-500.0,9.997e-05,2]
[343681404,1732848256845,-532.71,9.997e-05,2]
[343681405,1732848256884,-532.71,9.997e-05,2]
[343681406,1732848256924,-500.0,9.997e-05,2]
[343681407,1732848256963,-500.0,9.997e-05,2]
[343681408,1732848257010,-500.0,9.997e-05,2]